fUST/lending_fUST_20250601
["ID","MTS","AMOUNT","RATE_DAILY","PERIOD"]
[363562618,1748769043082,-430.0,0.00016712,2]
[363562620,1748769043091,-430.0,0.00016712,2]
[363562622,1748769043100,-430.0,0.00016712,2]
[363562624,1748769043110,-430.0,0.00016712,2]
[363562626,1748769043119,-430.0,0.00016712,2]
[363562628,1748769043130,-430.0,0.00016712,2]
[363562630,1748769043140,-405.04103203,0.00016712,2]
[363562632,1748769043149,-430.0,0.00016712,2]
[363562634,1748769043159,-430.0,0.00016712,2]
[363562636,1748769043169,-430.0,0.00016712,2]
[363562638,1748769043179,-430.0,0.00016712,2]
[363562640,1748769043188,-430.0,0.00016712,2]
[363562642,1748769043197,-533.80803155,0.00016712,2]
[363562644,1748769043206,-430.0,0.00016712,2]
[363562646,1748769043216,-430.0,0.00016712,2]
[363562648,1748769043225,-430.0,0.00016712,2]
[363562650,1748769043234,-430.0,0.00016712,2]
[363562652,1748769043244,-430.0,0.00016712,2]
[363562654,1748769043253,-430.0,0.00016712,2]
[363562657,1748769043263,-430.0,0.00016712,2]
[363562660,1748769043272,-430.0,0.00016712,2]
[363562662,1748769043281,-430.0,0.00016712,2]
[363562665,1748769043290,-227.74079175,0.00016712,2]
[363562668,1748769043300,-430.0,0.00016712,2]
[363562671,1748769043311,-430.0,0.00016712,2]
[363562673,1748769043321,-1699.4,0.00016712,2]
[363562675,1748769043331,-430.0,0.00016712,2]
[363562676,1748769043341,-430.0,0.00016712,2]
[363562679,1748769043354,-430.0,0.00016712,2]
[363562680,1748769043364,-370.0,0.00016712,2]
[363562683,1748769043376,-922.85,0.00016712,2]
[363562684,1748769043385,-430.0,0.00016712,2]
[363562686,1748769043395,-452.36,0.00016712,2]
[363562688,1748769043405,-430.0,0.00016712,2]
[363562690,1748769043414,-430.0,0.00016712,2]
[363562692,1748769043424,-363.29837282,0.00016712,2]
[363562694,1748769043434,-935.56,0.00016712,2]
[363562696,1748769043444,-600.92,0.00016712,2]
[363562698,1748769043454,-631.37,0.00016712,2]
[363562700,1748769043464,-1306.16,0.00016712,2]
[363562702,1748769043473,-430.0,0.00016712,2]
[363562704,1748769043483,-430.0,0.00016712,2]
[363562706,1748769043493,-430.0,0.00016712,2]
[363562708,1748769043504,-446.83,0.00016712,2]
[363562710,1748769043514,-430.0,0.00016712,2]
[363562712,1748769043524,-430.0,0.00016712,2]
[363562714,1748769043534,-430.0,0.00016712,2]
[363562716,1748769043543,-430.0,0.00016712,2]
[363562717,1748769043552,-430.0,0.00016712,2]
[363562718,1748769043562,-452.31208752,0.00016712,2]
[363562719,1748769043572,-456.88,0.00016712,2]
[363562720,1748769043582,-430.0,0.00016712,2]
[363562721,1748769043592,-222.12999999,0.00016712,2]
[363562722,1748769043603,-430.0,0.00016712,2]
[363562723,1748769043614,-445.39267255,0.00016712,2]
[363562724,1748769043624,-430.0,0.00016712,2]
[363562725,1748769043634,-430.0,0.00016712,2]
[363562726,1748769043644,-430.0,0.00016712,2]
[363562727,1748769043654,-430.0,0.00016712,2]
[363562728,1748769043665,-500.0,0.00016712,2]
[363562729,1748769043675,-430.0,0.00016712,2]
[363562730,1748769043685,-430.0,0.00016712,2]
[363562731,1748769043694,-430.0,0.00016712,2]
[363562732,1748769043704,-430.0,0.00016712,2]
[363562733,1748769043713,-430.0,0.00016712,2]
[363562734,1748769043724,-430.0,0.00016712,2]
[363562735,1748769043734,-430.0,0.00016712,2]
[363562736,1748769043743,-430.0,0.00016712,2]
[363562737,1748769043753,-430.0,0.00016712,2]
[363562738,1748769043763,-652.58,0.00016712,2]
[363562739,1748769043773,-595.66,0.00016712,2]
[363562740,1748769043782,-430.0,0.00016712,2]
[363562741,1748769043791,-430.0,0.00016712,2]
[363562742,1748769043801,-430.0,0.00016712,2]
[363562744,1748769043811,-430.0,0.00016712,2]
[363562746,1748769043821,-430.0,0.00016712,2]
[363562748,1748769043831,-430.0,0.00016712,2]
[363562750,1748769043841,-430.0,0.00016712,2]
[363562751,1748769043850,-430.0,0.00016712,2]
[363562752,1748769043860,-449.4963616,0.00016712,2]
[363562753,1748769043869,-430.0,0.00016712,2]
[363562754,1748769043878,-436.58317014,0.00016712,2]
[363562755,1748769043888,-845.02,0.00016712,2]
[363562756,1748769043897,-430.0,0.00016712,2]
[363562757,1748769043907,-430.0,0.00016712,2]
[363562758,1748769043916,-1391.63,0.00016712,2]
[363562759,1748769043926,-430.0,0.00016712,2]
[363562760,1748769043936,-430.0,0.00016712,2]
[363562761,1748769043945,-430.0,0.00016712,2]
[363562762,1748769043955,-430.0,0.00016712,2]
[363562763,1748769043965,-430.0,0.00016712,2]
[363562764,1748769043974,-628.18,0.00016712,2]
[363562765,1748769043984,-430.0,0.00016712,2]
[363562766,1748769043993,-430.0,0.00016712,2]
[363562767,1748769044003,-430.0,0.00016712,2]
[363562768,1748769044012,-430.0,0.00016712,2]
[363562769,1748769044022,-430.0,0.00016712,2]
[363562770,1748769044032,-430.0,0.00016712,2]
[363562771,1748769044042,-430.0,0.00016712,2]
[363562772,1748769044052,-430.0,0.00016712,2]
[363562773,1748769044062,-430.0,0.00016712,2]
[363562774,1748769044072,-430.0,0.00016712,2]
[363562775,1748769044081,-331.54265223,0.00016712,2]
[363562776,1748769044091,-430.0,0.00016712,2]
[363562777,1748769044101,-563.15,0.00016712,2]
[363562778,1748769044110,-430.0,0.00016712,2]
[363562779,1748769044121,-14718.35,0.00016712,2]
[363562780,1748769044131,-1825.69,0.00016712,2]
[363562781,1748769044141,-430.65264411,0.00016712,2]
[363562782,1748769044150,-430.0,0.00016712,2]
[363562784,1748769044160,-906.35,0.00016712,2]
[363562786,1748769044169,-430.0,0.00016712,2]
[363562788,1748769044178,-430.0,0.00016712,2]
[363562789,1748769044188,-430.0,0.00016712,2]
[363562791,1748769044198,-717.3,0.00016712,2]
[363562793,1748769044207,-361.26527999,0.00016712,2]
[363562794,1748769044217,-430.0,0.00016712,2]
[363562796,1748769044227,-431.28351299,0.00016712,2]
[363562797,1748769044237,-430.0,0.00016712,2]
[363562798,1748769044247,-455.7846219,0.00016712,2]
[363562799,1748769044257,-430.0,0.00016712,2]
[363562800,1748769044266,-151.0,0.00016728,2]
[363562801,1748769044276,-151.0,0.00016728,2]
[363562802,1748769044285,-2857.8,0.00016728,2]
[363562803,1748769044295,-2857.8,0.00016728,2]
[363562804,1748769044305,-500.0,0.00016739,2]
[363562805,1748769044315,-500.0,0.00016767,2]
[363562806,1748769044325,-500.0,0.00016794,2]
[363562807,1748769044334,-256.59581891,0.00016822,2]
[363562808,1748769044344,-420.0,0.0001685,2]
[363562809,1748769044359,-861.21836024,0.000169,2]
[363562810,1748769044368,-842.5625,0.00016944,2]
[363562811,1748769044378,-160.0,0.00016944,2]
[363562812,1748769044388,-160.0,0.00016944,2]
[363562813,1748769044399,-212.80060342,0.00016944,2]
[363562814,1748769044409,-423.51412927,0.00016944,2]
[363562815,1748769044419,-12666.87825251,0.00016944,2]
[363562816,1748769044430,-229.3709046,0.00016944,2]
[363562817,1748769044439,-160.0,0.00016944,2]
[363562818,1748769044449,-160.0,0.00016944,2]
[363562819,1748769044458,-160.0,0.00016944,2]
[363562820,1748769044468,-160.0,0.00016944,2]
[363562821,1748769044478,-160.0,0.00016944,2]
[363562822,1748769044488,-1302.17252584,0.00016955,2]
[363562823,1748769044498,-192.0,0.00016977,2]
[363562824,1748769044508,-333.579359,0.00016986,2]
[363562825,1748769044518,-333.579359,0.00016986,2]
[363562826,1748769044528,-151.0,0.00016986,2]
[363562827,1748769044538,-248.354092,0.00016986,2]
[363562828,1748769044547,-248.354092,0.00016986,2]
[363562829,1748769044557,-151.0,0.00016986,2]
[363562830,1748769044568,-151.0,0.00016986,2]
[363562831,1748769044577,-163.207856,0.00016986,2]
[363562832,1748769044587,-163.207856,0.00016986,2]
[363562833,1748769044597,-151.0,0.00016986,2]
[363562834,1748769044607,-151.0,0.00016986,2]
[363562835,1748769044617,-430.0,0.00016986,2]
[363562836,1748769044628,-430.0,0.00016986,2]
[363562837,1748769044638,-430.0,0.00016986,2]
[363562838,1748769044648,-430.0,0.00016986,2]
[363562839,1748769044658,-430.0,0.00016986,2]
[363562840,1748769044669,-158.92,0.00016986,2]
[363562841,1748769044678,-430.0,0.00016986,2]
[363562842,1748769044688,-430.0,0.00016986,2]
[363562843,1748769044698,-430.0,0.00016986,2]
[363562844,1748769044707,-430.0,0.00016986,2]
[363562845,1748769044717,-430.0,0.00016986,2]
[363562846,1748769044727,-370.0,0.00016986,2]
[363562847,1748769044736,-430.0,0.00016986,2]
[363562848,1748769044747,-430.0,0.00016986,2]
[363562849,1748769044756,-397.69743656,0.00016986,2]
[363562850,1748769044766,-373.92717138,0.00016986,2]
[363562851,1748769044775,-430.0,0.00016986,2]
[363562852,1748769044785,-430.0,0.00016986,2]
[363562853,1748769044795,-430.0,0.00016986,2]
[363562854,1748769044804,-430.0,0.00016986,2]
[363562855,1748769044814,-297.79431249,0.00016986,2]
[363562856,1748769044824,-430.0,0.00016986,2]
[363562857,1748769044833,-430.0,0.00016986,2]
[363562858,1748769044842,-430.0,0.00016986,2]
[363562859,1748769044852,-430.0,0.00016986,2]
[363562860,1748769044862,-430.0,0.00016986,2]
[363562861,1748769044871,-430.0,0.00016986,2]
[363562862,1748769044881,-461.10801608,0.00016986,2]
[363562863,1748769044890,-326.49606422,0.00016986,2]
[363562864,1748769044900,-430.0,0.00016986,2]
[363562865,1748769044911,-430.0,0.00016986,2]
[363562866,1748769044921,-430.0,0.00016986,2]
[363562867,1748769044930,-430.0,0.00016986,2]
[363562868,1748769044940,-430.0,0.00016986,2]
[363562869,1748769044950,-430.0,0.00016986,2]
[363562870,1748769044960,-430.0,0.00016986,2]
[363562871,1748769044970,-430.0,0.00016986,2]
[363562872,1748769044981,-235.14304205,0.00016986,2]
[363562873,1748769044991,-326.48807226,0.00016986,2]
[363562874,1748769045002,-430.0,0.00016986,2]
[363562875,1748769045013,-501.69200944,0.00016986,2]
[363562876,1748769045023,-430.0,0.00016986,2]
[363562877,1748769045033,-430.0,0.00016986,2]
[363562878,1748769045043,-430.0,0.00016986,2]
[363562879,1748769045053,-430.0,0.00016986,2]
[363562880,1748769045063,-1699.4,0.00016986,2]
[363562881,1748769045073,-430.0,0.00016986,2]
[363562882,1748769045083,-430.0,0.00016986,2]
[363562883,1748769045092,-430.0,0.00016986,2]
[363562884,1748769045101,-922.85,0.00016986,2]
[363562885,1748769045111,-430.0,0.00016986,2]
[363562886,1748769045121,-430.0,0.00016986,2]
[363562888,1748769045132,-935.56,0.00016986,2]
[363562890,1748769045142,-600.92,0.00016986,2]
[363562891,1748769045152,-631.37,0.00016986,2]
[363562892,1748769045162,-1306.16,0.00016986,2]
[363562893,1748769045172,-430.0,0.00016986,2]
[363562894,1748769045182,-430.0,0.00016986,2]
[363562895,1748769045193,-446.83,0.00016986,2]
[363562896,1748769045202,-430.0,0.00016986,2]
[363562897,1748769045212,-456.88,0.00016986,2]
[363562898,1748769045221,-430.0,0.00016986,2]
[363562899,1748769045231,-430.0,0.00016986,2]
[363562900,1748769045240,-430.0,0.00016986,2]
[363562901,1748769045250,-430.0,0.00016986,2]
[363562902,1748769045259,-500.0,0.00016986,2]
[363562903,1748769045269,-430.0,0.00016986,2]
[363562904,1748769045279,-430.0,0.00016986,2]
[363562905,1748769045289,-430.0,0.00016986,2]
[363562906,1748769045414,-430.0,0.00016986,2]
[363562908,1748769045426,-430.0,0.00016986,2]
[363562909,1748769045436,-430.0,0.00016986,2]
[363562911,1748769045446,-430.0,0.00016986,2]
[363562913,1748769045455,-430.0,0.00016986,2]
[363562915,1748769045465,-652.58,0.00016986,2]
[363562917,1748769045474,-595.66,0.00016986,2]
[363562919,1748769045484,-430.0,0.00016986,2]
[363562921,1748769045494,-430.0,0.00016986,2]
[363562923,1748769045504,-430.0,0.00016986,2]
[363562925,1748769045513,-430.0,0.00016986,2]
[363562926,1748769045524,-359.64031325,0.00016986,2]
[363562927,1748769045533,-430.0,0.00016986,2]
[363562928,1748769045543,-450.72880569,0.00016986,2]
[363562929,1748769045553,-430.0,0.00016986,2]
[363562930,1748769045562,-430.0,0.00016986,2]
[363562931,1748769045572,-845.02,0.00016986,2]
[363562932,1748769045582,-430.0,0.00016986,2]
[363562933,1748769045592,-430.0,0.00016986,2]
[363562934,1748769045602,-1391.63,0.00016986,2]
[363562935,1748769045611,-430.0,0.00016986,2]
[363562936,1748769045621,-430.0,0.00016986,2]
[363562937,1748769045633,-430.0,0.00016986,2]
[363562938,1748769045642,-430.0,0.00016986,2]
[363562939,1748769045652,-628.18,0.00016986,2]
[363562940,1748769045662,-484.85705169,0.00016986,2]
[363562941,1748769045672,-430.0,0.00016986,2]
[363562942,1748769045682,-430.0,0.00016986,2]
[363562943,1748769045692,-430.0,0.00016986,2]
[363562944,1748769045701,-430.0,0.00016986,2]
[363562945,1748769045712,-430.0,0.00016986,2]
[363562946,1748769045722,-429.85050634,0.00016986,2]
[363562947,1748769045732,-430.0,0.00016986,2]
[363562948,1748769045742,-430.0,0.00016986,2]
[363562949,1748769045752,-563.15,0.00016986,2]
[363562950,1748769045763,-14718.35,0.00016986,2]
[363562951,1748769045774,-1825.69,0.00016986,2]
[363562952,1748769045784,-430.0,0.00016986,2]
[363562953,1748769045794,-906.35,0.00016986,2]
[363562954,1748769045804,-430.0,0.00016986,2]
[363562955,1748769045815,-155.4213844,0.00016986,2]
[363562956,1748769045825,-430.0,0.00016986,2]
[363562957,1748769045835,-717.3,0.00016986,2]
[363562958,1748769045846,-430.0,0.00016986,2]
[363562959,1748769045856,-430.0,0.00016986,2]
[363562960,1748769045866,-1224.383076,0.00017011,2]
[363562961,1748769045875,-151.0,0.00017064,2]
[363562962,1748769045885,-663.819199,0.00017064,2]
[363562963,1748769045896,-663.819199,0.00017064,2]
[363562964,1748769045905,-502.66042553,0.0001708,2]
[363562965,1748769045915,-509.80594734,0.0001708,2]
[363562966,1748769045925,-500.0,0.00017087,2]
[363562967,1748769045935,-861.2183601,0.00017141,2]
[363562968,1748769045944,-151.0,0.00017155,2]
[363562969,1748769045954,-800.0,0.0001716,2]
[363562970,1748769045965,-151.0,0.00017167,2]
[363562971,1748769045976,-382.56540651,0.00017195,2]
[363562972,1748769045986,-501.76991613,0.00017204,2]
[363562973,1748769045996,-333.579359,0.00017213,2]
[363562974,1748769046006,-333.579359,0.00017213,2]
[363562975,1748769046015,-158.674894,0.00017213,2]
[363562976,1748769046025,-333.579359,0.0001726,2]
[363562977,1748769046035,-333.579359,0.0001726,2]
[363562978,1748769046045,-248.354092,0.0001726,2]
[363562979,1748769046055,-248.354092,0.0001726,2]
[363562980,1748769046065,-151.0,0.0001726,2]
[363562981,1748769046074,-151.0,0.0001726,2]
[363562982,1748769046084,-151.0,0.0001726,2]
[363562983,1748769046094,-151.0,0.0001726,2]
[363562985,1748769046104,-163.207856,0.0001726,2]
[363562986,1748769046113,-163.207856,0.0001726,2]
[363562987,1748769046123,-151.0,0.0001726,2]
[363562988,1748769046134,-151.0,0.0001726,2]
[363562989,1748769046144,-151.0,0.0001726,2]
[363562990,1748769046153,-430.0,0.0001726,2]
[363562991,1748769046163,-430.0,0.0001726,2]
[363562992,1748769046173,-430.0,0.0001726,2]
[363562993,1748769046183,-430.0,0.0001726,2]
[363562994,1748769046193,-363.93507252,0.0001726,2]
[363562995,1748769046204,-430.0,0.0001726,2]
[363562996,1748769046213,-430.0,0.0001726,2]
[363562997,1748769046223,-430.0,0.0001726,2]
[363562998,1748769046233,-151.0,0.0001726,2]
[363562999,1748769046243,-430.0,0.0001726,2]
[363563000,1748769046252,-430.0,0.0001726,2]
[363563001,1748769046262,-430.0,0.0001726,2]
[363563002,1748769046273,-430.0,0.0001726,2]
[363563003,1748769046283,-155.030959,0.0001726,2]
[363563004,1748769046293,-151.0,0.0001726,2]
[363563005,1748769046302,-430.0,0.0001726,2]
[363563006,1748769046312,-430.0,0.0001726,2]
[363563007,1748769046322,-430.0,0.0001726,2]
[363563008,1748769046332,-241.708618,0.0001726,2]
[363563009,1748769046342,-241.708618,0.0001726,2]
[363563010,1748769046356,-417.67945617,0.0001726,2]
[363563011,1748769046366,-1535.26881,0.0001726,2]
[363563012,1748769046376,-430.0,0.0001726,2]
[363563013,1748769046388,-1535.26881,0.0001726,2]
[363563014,1748769046398,-430.0,0.0001726,2]
[363563015,1748769046408,-430.0,0.0001726,2]
[363563016,1748769046418,-430.0,0.0001726,2]
[363563017,1748769046430,-430.0,0.0001726,2]
[363563018,1748769046441,-151.912082,0.0001726,2]
[363563019,1748769046451,-430.0,0.0001726,2]
[363563020,1748769046462,-430.0,0.0001726,2]
[363563021,1748769046472,-151.0,0.0001726,2]
[363563022,1748769046483,-151.0,0.0001726,2]
[363563023,1748769046493,-1907.895256,0.0001726,2]
[363563024,1748769046503,-1907.895256,0.0001726,2]
[363563025,1748769046513,-151.0,0.0001726,2]
[363563026,1748769046523,-430.0,0.0001726,2]
[363563027,1748769046533,-430.0,0.0001726,2]
[363563028,1748769046543,-430.0,0.0001726,2]
[363563029,1748769046553,-430.0,0.0001726,2]
[363563030,1748769046564,-1699.4,0.0001726,2]
[363563031,1748769046574,-430.0,0.0001726,2]
[363563032,1748769046584,-430.0,0.0001726,2]
[363563033,1748769046594,-922.85,0.0001726,2]
[363563034,1748769046605,-430.0,0.0001726,2]
[363563035,1748769046614,-935.56,0.0001726,2]
[363563036,1748769046625,-600.92,0.0001726,2]
[363563037,1748769046636,-631.37,0.0001726,2]
[363563038,1748769046646,-1306.16,0.0001726,2]
[363563039,1748769046656,-430.0,0.0001726,2]
[363563040,1748769046666,-151.0,0.0001726,2]
[363563041,1748769046676,-430.0,0.0001726,2]
[363563042,1748769046687,-446.83,0.0001726,2]
[363563043,1748769046697,-151.0,0.0001726,2]
[363563044,1748769046707,-181.514505,0.0001726,2]
[363563045,1748769046717,-430.0,0.0001726,2]
[363563046,1748769046726,-151.0,0.0001726,2]
[363563047,1748769046737,-456.88,0.0001726,2]
[363563048,1748769046747,-151.0,0.0001726,2]
[363563049,1748769046758,-430.0,0.0001726,2]
[363563050,1748769046770,-430.0,0.0001726,2]
[363563051,1748769046780,-430.0,0.0001726,2]
[363563052,1748769046790,-430.0,0.0001726,2]
[363563053,1748769046800,-430.0,0.0001726,2]
[363563054,1748769046810,-430.0,0.0001726,2]
[363563055,1748769046820,-430.0,0.0001726,2]
[363563056,1748769046829,-430.0,0.0001726,2]
[363563057,1748769046839,-430.0,0.0001726,2]
[363563058,1748769046848,-430.0,0.0001726,2]
[363563059,1748769046858,-652.58,0.0001726,2]
[363563060,1748769046868,-595.66,0.0001726,2]
[363563061,1748769046881,-430.0,0.0001726,2]
[363563062,1748769046890,-430.0,0.0001726,2]
[363563063,1748769046900,-430.0,0.0001726,2]
[363563064,1748769046910,-204.98,0.0001726,2]
[363563065,1748769046919,-430.0,0.0001726,2]
[363563066,1748769046928,-151.0,0.0001726,2]
[363563067,1748769046938,-430.0,0.0001726,2]
[363563068,1748769046948,-430.0,0.0001726,2]
[363563069,1748769046958,-845.02,0.0001726,2]
[363563070,1748769046968,-430.0,0.0001726,2]
[363563071,1748769046979,-170.7,0.0001726,2]
[363563072,1748769046989,-1391.63,0.0001726,2]
[363563073,1748769046998,-430.0,0.0001726,2]
[363563074,1748769047008,-430.0,0.0001726,2]
[363563075,1748769047018,-430.0,0.0001726,2]
[363563076,1748769047027,-430.0,0.0001726,2]
[363563077,1748769047037,-628.18,0.0001726,2]
[363563078,1748769047046,-430.0,0.0001726,2]
[363563079,1748769047056,-430.0,0.0001726,2]
[363563080,1748769047065,-437.55,0.0001726,2]
[363563081,1748769047075,-430.0,0.0001726,2]
[363563082,1748769047085,-430.0,0.0001726,2]
[363563083,1748769047095,-430.0,0.0001726,2]
[363563084,1748769047104,-563.15,0.0001726,2]
[363563085,1748769047114,-14718.35,0.0001726,2]
[363563086,1748769047123,-1825.69,0.0001726,2]
[363563087,1748769047133,-430.0,0.0001726,2]
[363563088,1748769047143,-906.35,0.0001726,2]
[363563089,1748769047153,-151.0,0.0001726,2]
[363563090,1748769047163,-430.0,0.0001726,2]
[363563091,1748769047173,-430.0,0.0001726,2]
[363563092,1748769047183,-717.3,0.0001726,2]
[363563093,1748769047193,-430.0,0.0001726,2]
[363563094,1748769047202,-430.0,0.0001726,2]
[363563095,1748769047211,-258.91856938,0.00017295,2]
[363563096,1748769047220,-151.0,0.00017358,2]
[363563097,1748769047230,-22312.17223884,0.00017359,2]
[363563098,1748769047240,-151.0,0.00017359,2]
[363563099,1748769047249,-151.80746,0.00017359,2]
[363563100,1748769047259,-248.354092,0.00017359,2]
[363563101,1748769047269,-248.354092,0.00017359,2]
[363563102,1748769047278,-151.0,0.00017359,2]
[363563103,1748769047288,-170.710618,0.00017359,2]
[363563104,1748769047297,-151.0,0.00017359,2]
[363563105,1748769047307,-151.0,0.00017359,2]
[363563106,1748769047317,-663.819199,0.00017359,2]
[363563107,1748769047326,-663.819199,0.00017359,2]
[363563108,1748769047336,-151.0,0.00017359,2]
[363563109,1748769047346,-296.0,0.00017359,2]
[363563110,1748769047359,-151.0,0.00017359,2]
[363563111,1748769047369,-176.8,0.00017359,2]
[363563112,1748769047379,-151.0,0.00017359,2]
[363563113,1748769047389,-151.0,0.00017359,2]
[363563114,1748769047400,-151.0,0.00017359,2]
[363563115,1748769047410,-151.0,0.00017359,2]
[363563116,1748769047420,-153.04198,0.00017359,2]
[363563117,1748769047431,-153.04198,0.00017359,2]
[363563118,1748769047441,-151.0,0.00017359,2]
[363563119,1748769047451,-754.857297,0.00017359,2]
[363563120,1748769047460,-754.857297,0.00017359,2]
[363563121,1748769047470,-449.951041,0.00017359,2]
[363563122,1748769047480,-449.951041,0.00017359,2]
[363563123,1748769047490,-151.0,0.00017359,2]
[363563124,1748769047500,-297.600024,0.00017359,2]
[363563125,1748769047510,-218.287721,0.00017359,2]
[363563126,1748769047520,-151.0,0.00017359,2]
[363563127,1748769047530,-218.287721,0.00017359,2]
[363563128,1748769047540,-310.924928,0.00017359,2]
[363563129,1748769047550,-310.924928,0.00017359,2]
[363563130,1748769047560,-861.2183601,0.00017383,2]
[363563131,1748769047570,-151.0,0.000174,2]
[363563132,1748769047581,-217.99419479,0.00017412,2]
[363563133,1748769047591,-431.34652,0.00017529,2]
[363563134,1748769047603,-431.34652,0.00017529,2]
[363563135,1748769047613,-151.0,0.00017529,2]
[363563136,1748769047623,-151.0,0.00017529,2]
[363563137,1748769047635,-342.48662,0.00017529,2]
[363563138,1748769047644,-342.48662,0.00017529,2]
[363563139,1748769047655,-1095.355991,0.00017529,2]
[363563140,1748769047665,-1095.355991,0.00017529,2]
[363563141,1748769047675,-152.476461,0.00017533,2]
[363563142,1748769047685,-151.0,0.00017533,2]
[363563143,1748769047695,-151.0,0.00017533,2]
[363563144,1748769047704,-151.0,0.00017533,2]
[363563145,1748769047713,-151.0,0.00017533,2]
[363563146,1748769047723,-151.0,0.00017533,2]
[363563147,1748769047732,-151.0,0.00017533,2]
[363563148,1748769047741,-663.819199,0.00017533,2]
[363563149,1748769047751,-663.819199,0.00017533,2]
[363563150,1748769047760,-151.0,0.00017533,2]
[363563151,1748769047770,-151.0,0.00017533,2]
[363563152,1748769047779,-151.0,0.00017533,2]
[363563153,1748769047789,-173.548596,0.00017533,2]
[363563154,1748769047800,-173.548596,0.00017533,2]
[363563155,1748769047810,-153.106816,0.00017533,2]
[363563156,1748769047820,-373.802157,0.00017533,2]
[363563157,1748769047830,-373.802157,0.00017533,2]
[363563158,1748769047840,-486.247321,0.00017533,2]
[363563159,1748769047850,-486.247321,0.00017533,2]
[363563160,1748769047860,-181.581526,0.00017533,2]
[363563161,1748769047870,-181.581526,0.00017533,2]
[363563162,1748769047881,-151.0,0.00017534,2]
[363563163,1748769047891,-333.579359,0.00017534,2]
[363563164,1748769047901,-333.579359,0.00017534,2]
[363563165,1748769047910,-248.354092,0.00017534,2]
[363563166,1748769047920,-248.354092,0.00017534,2]
[363563167,1748769047930,-151.0,0.00017534,2]
[363563168,1748769047940,-169.111676,0.00017534,2]
[363563169,1748769047950,-151.0,0.00017534,2]
[363563170,1748769047960,-151.0,0.00017534,2]
[363563171,1748769047970,-152.866879,0.00017534,2]
[363563172,1748769047979,-153.731127,0.00017534,2]
[363563173,1748769047989,-151.0,0.00017534,2]
[363563174,1748769047999,-151.0,0.00017534,2]
[363563175,1748769048008,-163.207856,0.00017534,2]
[363563176,1748769048018,-163.207856,0.00017534,2]
[363563177,1748769048027,-151.0,0.00017534,2]
[363563178,1748769048037,-151.0,0.00017534,2]
[363563179,1748769048047,-151.0,0.00017534,2]
[363563180,1748769048057,-173.65,0.00017534,2]
[363563181,1748769048068,-173.65,0.00017534,2]
[363563182,1748769048078,-151.0,0.00017534,2]
[363563183,1748769048088,-152.62958,0.00017534,2]
[363563184,1748769048207,-679.941622,0.00017534,2]
[363563185,1748769048218,-679.941622,0.00017534,2]
[363563186,1748769048228,-430.0,0.00017534,2]
[363563187,1748769048238,-430.0,0.00017534,2]
[363563188,1748769048247,-430.0,0.00017534,2]
[363563189,1748769048258,-430.0,0.00017534,2]
[363563190,1748769048267,-430.0,0.00017534,2]